bitfinex-derivatives/quotes_ETHF0:USTF0_20230830
["timestamp","ask_amount","ask_price","bid_price","bid_amount"]
[1693407646743,3.2078,1702.9,1702.6,20.05043648]
[1693407646938,1.43358175,1702.8,1702.6,20.05043648]
[1693407647144,1.43358175,1702.8,1702.6,21.48401824]
[1693407647537,3.70351823,1702.8,1702.6,21.48401824]
[1693407647938,6.22402182,1703.1,1702.6,21.48401824]
[1693407648241,6.22402182,1703.1,1702.7,12.929]
[1693407648443,6.22402182,1703.1,1702.8,2.26993648]
[1693407648638,1.43358175,1703.0,1702.9,1.43358176]
[1693407649141,1.43358175,1703.0,1702.8,7.52423648]
[1693407649339,3.48984881,1703.2,1702.9,14.36258176]
[1693407649544,6.22402182,1703.3,1703.0,2.26993648]
[1693407649740,0.29364045,1703.2,1703.0,2.26993648]
[1693407649945,6.22402182,1703.3,1703.1,1.43358176]
[1693407650147,3.2078,1703.3,1703.2,2.26993648]
[1693407650444,3.50142768,1703.3,1703.2,2.26993648]
[1693407650641,0.0871485,1703.4,1703.2,15.19893648]
[1693407650944,0.0871485,1703.4,1703.3,14.36258176]
[1693407651341,3.01622182,1703.6,1703.4,2.26993648]
[1693407651536,3.01622182,1703.8,1703.5,17.57038176]
[1693407651741,3.30977545,1703.8,1703.6,12.929]
[1693407651944,3.01622182,1703.9,1703.7,3.70351824]
[1693407652245,3.30976958,1703.9,1703.7,3.70351824]
[1693407652445,6.22402182,1704.0,1703.7,3.70351824]
[1693407652747,0.29354395,1703.9,1703.7,3.70351824]
[1693407653539,3.01622182,1704.0,1703.8,12.929]
[1693407653740,3.01622182,1704.1,1703.9,3.70351824]
[1693407654036,3.30974407,1704.1,1703.9,3.70351824]
[1693407654439,3.01622182,1704.1,1703.9,3.70351824]
[1693407654640,6.70066133,1704.2,1703.9,3.70351824]
[1693407654851,3.49286133,1704.2,1703.9,3.70351824]
[1693407655243,3.01622182,1704.3,1704.0,12.929]
[1693407655448,6.22402182,1704.4,1704.1,3.70351824]
[1693407655741,0.29349556,1704.3,1704.1,3.70351824]
[1693407655940,6.22402182,1704.4,1704.1,3.70351824]
[1693407656738,3.2078,1704.4,1704.1,3.70351824]
[1693407656943,3.48224396,1704.5,1704.2,12.929]
[1693407657143,0.46602214,1704.5,1704.3,3.70351824]
[1693407657441,1.43358175,1704.5,1704.3,1.64919317]
[1693407658048,6.22402182,1704.6,1704.3,1.64919317]
[1693407658347,0.29347766,1704.5,1704.3,1.64919317]
[1693407658545,6.22402182,1704.6,1704.3,1.64919317]
[1693407658546,3.2078,1704.6,1704.3,1.64919317]
[1693407658841,3.01622182,1704.8,1704.3,17.78599317]
[1693407659057,5.5796088,1704.7,1704.3,17.78599317]
[1693407659350,2.26993648,1704.7,1704.4,5.0561]
[1693407659551,2.26993648,1704.7,1704.5,1.64919317]
[1693407659742,3.70351823,1704.7,1704.5,1.64919317]
[1693407659944,3.2078,1704.8,1704.5,1.64919317]
[1693407660149,3.68847338,1704.8,1704.5,1.64919317]
[1693407660550,0.48067338,1704.8,1704.5,14.57819317]
[1693407660750,3.2078,1704.8,1704.5,14.57819317]
[1693407660946,1.43358175,1704.7,1704.4,5.0561]
[1693407661151,3.2078,1704.8,1704.5,1.43358176]
[1693407661540,3.2078,1704.8,1704.6,0.21561141]
[1693407661740,3.2078,1704.8,1704.7,1.43358176]
[1693407661941,6.22402182,1705.0,1704.7,1.43358176]
[1693407662148,6.22402182,1705.0,1704.4,5.0561]
[1693407662149,3.2078,1704.8,1704.5,3.2078]
[1693407662346,3.2078,1704.8,1704.6,1.43358176]
[1693407662646,4.64138175,1704.8,1704.6,1.43358176]
[1693407662844,4.64138175,1704.8,1704.5,3.2078]
[1693407663147,4.64138175,1704.8,1704.6,1.43358176]
[1693407663351,1.43358175,1704.8,1704.6,1.43358176]
[1693407664055,4.64138175,1704.8,1704.5,3.2078]
[1693407664451,6.91131823,1704.8,1704.6,1.43358176]
[1693407664650,6.91131823,1704.8,1704.5,3.42341141]
[1693407665149,3.2078,1704.6,1704.4,5.0561]
[1693407665342,3.70351823,1704.5,1704.3,0.00880022]
[1693407665547,3.2078,1704.4,1704.3,0.00880022]
[1693407665745,3.21071326,1704.4,1704.3,0.00880022]
[1693407667547,0.00917996,1704.2,1703.8,12.929]
[1693407667756,16.1368,1704.1,1703.6,3.2078]
[1693407667952,3.2078,1703.7,1703.5,12.929]
[1693407668148,4.64138175,1703.7,1703.5,14.36258176]
[1693407669352,2.26993648,1703.6,1703.4,5.0449]
[1693407669559,1.43358175,1703.5,1703.4,5.0449]
[1693407670647,4.64138175,1703.5,1703.4,5.0449]
[1693407670848,17.57038175,1703.5,1702.8,16.1368]
[1693407671150,3.2078,1703.2,1702.8,16.1368]
[1693407671347,2.26993648,1703.1,1702.8,16.1368]
[1693407671545,1.43358175,1703.0,1702.8,16.60015491]
[1693407671743,3.70351823,1703.0,1702.8,3.2078]
[1693407672250,6.91131823,1703.0,1702.6,18.23086855]
[1693407672450,6.91131823,1703.0,1702.6,4.8395]
[1693407672654,3.2078,1702.8,1702.6,4.8395]
[1693407672855,1.43358175,1702.7,1702.6,4.8395]
[1693407673165,1.43358175,1702.7,1702.6,6.27308176]
[1693407673354,5.47773648,1702.8,1702.6,6.27308176]
[1693407673554,6.91131823,1702.8,1702.6,6.27308176]
[1693407674055,6.91131823,1702.8,1702.6,4.8395]
[1693407676351,3.2078,1703.0,1702.6,6.27308176]
[1693407676744,2.26993648,1702.9,1702.7,0.21561141]
[1693407676949,2.26993648,1702.9,1702.8,1.43358176]
[1693407677146,3.70351823,1702.9,1702.5,12.929]
[1693407677346,16.1368,1702.7,1702.3,5.0818]
[1693407677550,16.1368,1702.7,1702.2,4.8383]
[1693407677551,3.2078,1702.5,1702.2,4.8383]
[1693407677849,1.43358175,1702.4,1702.2,4.8383]
[1693407678048,3.70351823,1702.4,1702.2,6.27188176]
[1693407678247,3.2078,1702.5,1702.2,6.27188176]
[1693407678653,3.2078,1702.5,1702.2,6.48749317]
[1693407678854,5.47773648,1702.5,1702.2,6.48749317]
[1693407679054,1.43358175,1702.4,1702.2,6.48749317]
[1693407679259,1.43358175,1702.4,1702.2,4.8383]
[1693407679460,2.26993648,1702.3,1702.2,4.8383]
[1693407679754,5.47773648,1702.3,1702.2,4.8383]
[1693407681662,5.47773648,1702.3,1701.9,12.929]
[1693407681857,5.47773648,1702.3,1701.9,13.14461141]
[1693407682061,2.26993648,1702.3,1701.9,13.14461141]
[1693407682358,5.47773648,1702.3,1701.9,13.14461141]
[1693407682561,18.40673648,1702.3,1701.8,8.52495095]
[1693407682757,3.2078,1701.9,1701.8,4.8439]
[1693407682951,6.91131823,1701.9,1701.8,4.8439]
[1693407683654,12.929,1702.1,1701.8,6.27748176]
[1693407683655,3.2078,1702.1,1701.8,6.27748176]
[1693407683959,1.43358175,1702.0,1701.8,6.27748176]
[1693407685151,5.47773648,1702.1,1701.8,6.27748176]
[1693407685353,3.2078,1702.3,1701.9,7.9562451]
[1693407685954,3.2078,1702.3,1701.9,0.21561141]
[1693407686162,5.47773648,1702.3,1701.9,0.21561141]
[1693407686554,5.47773648,1702.3,1701.9,3.42341141]
[1693407686856,5.47773648,1702.3,1702.0,12.929]
[1693407687059,3.2078,1702.5,1702.2,12.929]
[1693407687262,1.43358175,1702.4,1702.2,12.929]
[1693407687660,3.70351823,1702.4,1702.0,12.929]
[1693407687859,3.2078,1702.3,1702.0,13.14461141]
[1693407688062,1.43358175,1702.2,1702.0,20.88798528]
[1693407688363,2.26993648,1702.1,1701.9,16.1368]
[1693407688563,3.70351823,1702.1,1701.9,17.57038176]
[1693407688961,3.70351823,1702.1,1701.9,12.929]
[1693407689163,6.91131823,1702.1,1701.8,4.8439]
[1693407690563,6.91131823,1702.1,1701.9,1.43358176]
[1693407691266,6.91131823,1702.1,1701.8,5.05951141]
[1693407691466,6.91131823,1702.1,1701.8,4.8439]
[1693407691667,3.2078,1701.9,1701.8,4.8439]
[1693407691965,3.2078,1701.9,1701.8,6.27748176]
[1693407692365,4.64138175,1701.9,1701.8,4.8439]
[1693407692567,1.43358175,1701.9,1701.8,4.8439]
[1693407693360,1.43358175,1701.9,1701.8,6.27748176]
[1693407693560,2.26993648,1702.0,1701.8,6.27748176]
[1693407693955,3.70351823,1702.0,1701.8,6.27748176]
[1693407694964,3.2078,1702.1,1701.9,0.21561141]
[1693407695165,3.2078,1702.1,1702.0,1.43358176]
[1693407697574,3.2078,1702.1,1701.8,20.9807]
[1693407697575,6.91131823,1702.1,1701.8,20.9807]
[1693407697770,6.91131823,1702.1,1701.8,8.0517]
[1693407697967,6.91131823,1702.1,1701.8,4.8439]
[1693407698878,6.91131823,1702.1,1701.8,5.05951141]
[1693407699073,6.91131823,1702.1,1701.8,8.26731141]
[1693407700176,6.91131823,1702.1,1701.8,8.0517]
[1693407700371,6.91131823,1702.1,1701.8,4.8439]
[1693407700770,16.6146505,1702.4,1701.9,9.19909188]
[1693407700974,2.26993648,1702.3,1701.9,9.19909188]
[1693407701174,2.26993648,1702.3,1701.9,9.41470329]
[1693407701375,2.26993648,1702.3,1702.0,3.2078]
[1693407701576,16.1368,1702.6,1702.1,1.43358176]
[1693407701773,2.26993648,1702.5,1702.2,0.21561141]
[1693407701973,1.43358175,1702.4,1702.1,1.43358176]
[1693407702176,15.19893648,1702.3,1702.0,3.2078]
[1693407702371,9.65958175,1702.2,1701.8,13.0699]
[1693407702675,8.226,1701.9,1701.8,4.8439]
[1693407702974,9.65958175,1701.9,1701.8,4.8439]
[1693407703277,11.92951823,1701.9,1701.8,4.8439]
[1693407703473,11.92951823,1701.9,1701.5,0.4657122]
[1693407703673,8.226,1701.6,1701.2,26.04887432]
[1693407703981,11.92951823,1701.9,1701.4,11.4338]
[1693407703982,8.226,1701.9,1701.4,11.4338]
[1693407704482,8.226,1701.9,1701.2,11.4338]
[1693407704483,5.47773648,1701.8,1701.2,11.4338]
[1693407704676,8.226,1701.6,1701.2,11.4338]
[1693407704879,8.226,1701.6,1701.3,0.21561141]
[1693407705077,8.226,1701.6,1701.4,1.43358176]
[1693407705378,11.92951823,1701.6,1701.2,11.4338]
[1693407705580,8.226,1701.5,1701.1,8.226]
[1693407705776,8.226,1701.3,1701.0,13.722]
[1693407705978,1.43358175,1701.2,1701.0,13.722]
[1693407706177,1.43358175,1701.2,1700.9,8.226]
[1693407706375,1.43358175,1701.2,1700.9,13.74091141]
[1693407706683,2.26993648,1701.1,1700.9,13.5253]
[1693407707378,2.26993648,1701.1,1701.0,1.43358176]
[1693407708278,3.70351823,1701.1,1701.0,1.43358176]
[1693407708982,3.70351823,1701.1,1700.9,5.7793047]
[1693407710275,3.70351823,1701.1,1700.9,7.42849787]
[1693407710681,3.2078,1701.2,1700.9,7.42849787]
[1693407711783,1.43358175,1701.1,1700.9,7.42849787]
[1693407712287,16.1408,1701.4,1700.9,7.42849787]
[1693407712883,2.26993648,1701.3,1700.9,7.42849787]
[1693407713078,16.1408,1701.1,1700.9,5.7793047]
[1693407713279,16.1408,1701.1,1700.9,5.2993]
[1693407713280,1.43358175,1701.0,1700.9,5.2993]
[1693407713483,3.70351823,1701.0,1700.9,5.2993]
[1693407713781,12.933,1701.1,1700.9,6.73288176]
[1693407714086,16.1408,1701.3,1700.9,6.73288176]
[1693407714282,2.26993648,1701.2,1701.0,0.21561141]
[1693407714491,3.70351823,1701.2,1701.0,0.21561141]
[1693407714988,1.43358175,1701.2,1701.0,0.21561141]
[1693407715382,12.933,1701.3,1701.1,1.43358176]
[1693407715581,16.1408,1701.5,1701.2,0.21561141]
[1693407715781,1.43358175,1701.4,1701.2,0.21561141]
[1693407716085,1.43358175,1701.4,1701.3,1.43358176]
[1693407716388,1.43358175,1701.4,1701.2,0.21561141]
[1693407717089,2.26993648,1701.3,1701.0,8.2718]
[1693407717386,1.43358175,1701.2,1701.1,9.08581839]
[1693407717585,12.933,1701.5,1701.1,9.08581839]
[1693407717790,12.933,1701.5,1701.2,0.21561141]
[1693407717983,1.43358175,1701.4,1701.2,0.21561141]
[1693407718288,1.43358175,1701.4,1701.0,8.73411438]
[1693407718490,2.26993648,1701.3,1701.0,5.52631438]
[1693407718688,14.36658175,1701.2,1701.0,0.46231438]
[1693407718888,14.36658175,1701.2,1700.9,5.2993]
[1693407719090,5.47773648,1701.3,1701.0,1.43358176]
[1693407719291,5.47773648,1701.3,1701.0,9.24644065]
[1693407719489,5.47773648,1701.3,1701.1,0.21561141]
[1693407719687,6.91131823,1701.3,1701.1,0.21561141]
[1693407720793,6.91131823,1701.3,1700.9,8.5071]
[1693407721189,12.933,1701.2,1700.9,5.2993]
[1693407721392,3.70351823,1701.1,1700.9,5.2993]
[1693407721591,3.70351823,1701.1,1700.9,6.73288176]
[1693407723191,3.70351823,1701.1,1700.9,5.2993]
[1693407724191,19.84431823,1701.1,1700.8,0.46088443]
[1693407724382,19.84431823,1701.1,1700.7,3.2078]
[1693407724582,12.933,1700.9,1700.7,3.2078]
[1693407724783,16.63651823,1700.8,1700.7,3.2078]
[1693407724986,12.933,1700.8,1700.6,5.0387]
[1693407725191,22.933,1700.9,1700.2,3.2078]
[1693407725192,19.84431823,1700.7,1700.2,3.2078]
[1693407725490,2.26993648,1700.7,1700.3,0.21561141]
[1693407725687,16.1408,1700.9,1700.4,3.2078]
[1693407725888,2.26993648,1700.8,1700.4,3.2078]
[1693407726291,12.933,1700.6,1700.2,5.51246466]
[1693407726590,18.41073648,1700.5,1700.2,5.51246466]
[1693407726791,3.2078,1700.8,1700.3,1.43358176]
[1693407726987,12.933,1700.6,1700.3,4.25823982]
[1693407727193,2.26993648,1700.7,1700.3,6.53996642]
[1693407727393,2.26993648,1700.7,1700.3,3.93091977]
[1693407727990,2.26993648,1700.7,1700.4,2.86132343]
[1693407728294,1.43358175,1700.6,1700.3,3.93091977]
[1693407728991,2.26993648,1700.5,1700.4,2.92122146]
[1693407729293,2.26993648,1700.5,1700.3,3.71530836]
[1693407729493,12.933,1700.7,1700.3,3.93091977]
[1693407729792,2.26993648,1700.6,1700.3,3.93091977]
[1693407730492,3.2078,1700.8,1700.3,16.86391977]
[1693407730695,2.26993648,1700.7,1700.3,16.86391977]
[1693407730894,2.26993648,1700.7,1700.4,8.38309477]
[1693407731090,2.26993648,1700.7,1700.5,2.27364459]
[1693407731690,2.26993648,1700.7,1700.3,15.2147266]
[1693407731895,16.1408,1700.6,1700.3,2.2817266]
[1693407732197,2.26993648,1700.5,1700.3,5.2218547]
[1693407732389,8.234,1700.4,1700.3,2.9401281]
[1693407732587,8.234,1700.4,1700.2,11.00199126]
[1693407732989,2.26993648,1700.3,1700.2,11.00199126]
[1693407733193,10.50393648,1700.3,1700.2,8.45274965]
[1693407733790,10.50393648,1700.3,1700.2,11.39323216]
[1693407733993,10.50393648,1700.3,1700.2,13.2011941]
[1693407734296,10.50393648,1700.3,1700.2,7.97898499]
[1693407734791,2.26993648,1700.3,1700.2,9.41256675]
[1693407734995,11.4418,1700.4,1700.2,9.41256675]
[1693407735194,13.67137764,1700.4,1700.2,9.41256675]
[1693407735499,13.67137764,1700.4,1700.2,7.97898499]
[1693407735995,10.46357764,1700.4,1700.2,10.24892147]
[1693407736193,8.234,1700.4,1700.3,3.2078]
[1693407736496,8.234,1700.5,1700.3,4.64138176]
[1693407737390,8.234,1700.5,1700.4,2.26993648]
[1693407738092,8.234,1700.5,1700.3,4.64138176]
[1693407738497,8.234,1700.5,1700.3,6.91131824]
[1693407738799,8.234,1700.7,1700.4,7.79319411]
[1693407739003,8.234,1701.0,1700.6,8.234]
[1693407739197,8.70955209,1701.1,1700.7,11.4418]
[1693407739510,8.70955209,1701.1,1700.8,2.26993648]
[1693407739511,8.234,1701.1,1700.8,2.26993648]
[1693407739795,10.46357764,1701.1,1700.8,2.26993648]
[1693407739996,8.234,1701.0,1700.7,3.2078]
[1693407740200,8.234,1700.9,1700.7,3.2078]
[1693407740394,2.22957764,1700.8,1700.6,4.8606]
[1693407740591,2.22957764,1700.8,1700.5,1.5288576]
[1693407740795,8.234,1700.6,1700.4,1.5288576]
[1693407740997,10.46357764,1700.5,1700.3,20.1114576]
[1693407741201,10.46357764,1700.5,1700.3,6.3894576]
[1693407741797,8.234,1700.4,1700.3,6.3894576]
[1693407741993,8.234,1700.4,1700.3,1.5288576]
[1693407742198,11.4418,1700.4,1700.2,2.94028499]
[1693407742502,10.46357764,1700.3,1700.2,2.94028499]
[1693407742799,10.46357764,1700.3,1699.8,16.779471]
[1693407742800,8.234,1700.2,1699.8,2.00611214]
[1693407743000,8.234,1699.9,1699.8,1.5288576]
[1693407743203,8.234,1699.9,1699.7,1.5288576]
[1693407743404,3.2078,1700.0,1699.7,1.5288576]
[1693407743405,10.46357764,1699.8,1699.7,1.5288576]
[1693407743803,10.46357764,1699.8,1699.7,3.82196085]
[1693407744203,10.46357764,1699.8,1699.7,4.47177103]
[1693407744401,13.67137764,1699.8,1699.7,2.94157284]
[1693407744605,10.0,1699.7,1699.5,1.53019819]
[1693407744800,5.43737764,1699.6,1699.2,5.35179443]
[1693407745098,3.2078,1699.5,1699.2,6.09299541]
[1693407745295,2.22957764,1699.4,1699.3,1.52995568]
[1693407745502,3.2078,1699.5,1699.2,1.52995568]
[1693407745697,3.2078,1699.5,1699.3,2.96353744]
[1693407745899,5.43737764,1699.5,1699.3,2.96353744]
[1693407746104,8.234,1699.4,1699.3,5.90574618]
[1693407746405,8.234,1699.5,1699.3,9.1134114]
[1693407746602,8.69476896,1699.8,1699.5,2.64765512]
[1693407746810,8.69476896,1699.8,1699.7,3.2078]
[1693407746811,8.234,1699.8,1699.7,3.2078]
[1693407747304,2.22957764,1699.9,1699.7,1.43358176]
[1693407747305,15.17457764,1699.9,1699.7,1.43358176]
[1693407747709,15.17457764,1699.9,1699.7,2.96353744]
[1693407748200,12.945,1700.0,1699.7,8.44127392]
[1693407748403,3.68208187,1700.2,1699.8,4.47143925]
[1693407748404,16.62708187,1700.2,1699.8,4.47143925]
[1693407748709,2.22957764,1700.1,1699.9,2.26993648]
[1693407748899,2.22957764,1700.1,1699.8,1.52995568]
[1693407749102,2.22957764,1700.1,1699.8,4.47141045]
[1693407749505,12.945,1699.9,1699.7,1.52995568]
[1693407749703,2.22957764,1699.8,1699.7,4.47157067]
[1693407750006,15.17457764,1699.8,1699.6,6.50085568]
[1693407750305,15.17457764,1699.8,1699.6,7.93443744]
[1693407750703,3.2078,1700.0,1699.7,3.79989216]
[1693407750906,3.2078,1700.0,1699.8,1.43358176]
[1693407751105,12.945,1700.1,1699.8,1.43358176]
[1693407751305,13.42460083,1700.3,1700.0,1.52995568]
[1693407751509,3.2078,1700.4,1700.0,1.52995568]
[1693407751510,3.2078,1700.4,1700.1,1.43358176]
[1693407751704,3.2078,1700.4,1700.1,2.96353744]
[1693407752010,5.43737764,1700.4,1700.1,3.70351824]
[1693407752210,2.22957764,1700.4,1700.2,1.43358176]
[1693407752507,16.1528,1700.9,1700.3,18.42273648]
[1693407752804,3.2078,1700.9,1700.4,20.57094882]
[1693407753011,3.2078,1700.9,1700.5,2.26993648]
[1693407753307,3.2078,1700.9,1700.6,7.56195523]
[1693407753509,3.2078,1700.9,1700.7,3.70351824]
[1693407754409,5.43737764,1700.9,1700.5,6.33295568]
[1693407754903,5.43737764,1700.9,1700.5,8.60289216]
[1693407755106,3.2078,1700.9,1700.5,8.60289216]
[1693407755310,12.945,1701.0,1700.7,3.2078]
[1693407755607,16.1528,1701.2,1700.8,3.70351824]
[1693407755808,2.22957764,1701.1,1700.8,3.70351824]
[1693407756007,2.22957764,1701.1,1700.8,2.26993648]
[1693407756407,2.22957764,1701.1,1700.9,1.43358176]
[1693407756811,3.2078,1701.2,1701.0,2.26993648]
[1693407757007,10.0,1701.6,1701.1,1.43358176]
[1693407757008,13.2078,1701.6,1701.1,1.43358176]
[1693407757208,13.2078,1701.6,1701.2,2.26993648]
[1693407757209,12.945,1701.5,1701.2,2.26993648]
[1693407757406,16.1528,1701.4,1700.7,17.68275568]
[1693407757606,16.1528,1701.4,1700.8,1.52995568]
[1693407757810,16.1528,1701.4,1700.8,9.07810859]
[1693407758401,16.1528,1701.4,1700.9,3.2078]
[1693407758611,12.945,1701.4,1701.0,2.26993648]
[1693407758809,0.00881808,1701.2,1701.0,2.26993648]
[1693407759112,0.00881808,1701.2,1701.1,1.43358176]
[1693407760510,0.00881808,1701.2,1701.0,4.8966]
[1693407760811,0.00881808,1701.2,1701.0,8.60011824]
[1693407760812,12.95381808,1701.2,1701.0,8.60011824]
[1693407761611,2.22957764,1701.1,1701.0,4.8966]
[1693407761912,15.17457764,1701.1,1700.7,4.73775568]
[1693407762214,15.17457764,1701.1,1700.6,6.63235568]
[1693407762215,13.2078,1701.0,1700.6,6.63235568]
[1693407762516,15.17457764,1700.9,1700.6,6.63235568]
[1693407762715,12.945,1701.1,1700.7,1.43358176]
[1693407763013,2.22957764,1701.1,1700.7,1.43358176]
[1693407763915,10.0,1701.0,1700.7,1.43358176]
[1693407764115,2.22957764,1700.9,1700.6,6.63235568]
[1693407764523,15.17457764,1700.9,1700.6,6.63235568]
[1693407764712,15.17457764,1700.9,1700.7,1.43358176]
[1693407765016,15.17457764,1700.9,1700.6,6.63235568]
[1693407765214,15.17457764,1700.9,1700.6,1.52995568]
[1693407765521,15.17457764,1700.9,1700.5,10.39750325]
[1693407765522,15.17457764,1700.9,1700.5,6.42655568]
[1693407765708,2.22957764,1700.9,1700.5,6.42655568]
[1693407765908,2.22957764,1700.9,1700.6,17.41513307]
[1693407766107,3.2078,1701.1,1700.7,9.11140091]
[1693407766305,3.2078,1701.1,1700.8,3.79989216]
[1693407766511,5.43737764,1701.1,1700.9,1.43358176]
[1693407766915,3.2078,1701.1,1700.9,1.43358176]
[1693407767514,3.2078,1701.1,1701.0,15.21493648]
[1693407767713,3.2078,1701.1,1701.0,22.96624255]
[1693407767912,3.2078,1701.1,1701.0,15.21493648]
[1693407768612,3.2078,1701.1,1701.0,2.26993648]
[1693407768818,0.00881808,1701.2,1701.0,2.26993648]
[1693407769025,0.00881808,1701.2,1701.1,1.43358176]
[1693407769615,0.00881808,1701.2,1701.0,20.31953648]
[1693407769816,0.00881808,1701.2,1701.1,1.43358176]
[1693407770911,0.00881808,1701.2,1701.1,17.58638176]
[1693407771522,0.00881808,1701.2,1701.1,1.43358176]
[1693407772317,0.00881808,1701.2,1701.0,10.2201]
[1693407772720,3.21661808,1701.2,1701.0,10.22891756]
[1693407772933,2.22957764,1701.1,1701.0,10.22891756]
[1693407773322,2.22957764,1701.1,1701.0,5.11341756]
[1693407774035,16.16161808,1701.2,1701.0,5.11341756]
[1693407774036,3.21661808,1701.2,1701.0,6.54699932]
[1693407775129,0.00881808,1701.2,1701.1,2.26993648]
[1693407776332,0.00881808,1701.2,1701.0,5.11341756]
[1693407776735,2.22957764,1701.1,1701.0,5.11341756]
[1693407776932,2.22957764,1701.1,1701.0,6.54699932]
[1693407777231,0.00881808,1701.2,1701.0,6.54699932]
[1693407777632,0.00881808,1701.2,1701.1,2.26993648]
[1693407778431,0.00881808,1701.2,1701.0,5.11341756]
[1693407778627,2.22957764,1701.1,1701.0,5.11341756]
[1693407778936,2.22957764,1701.1,1701.0,6.54699932]
[1693407779138,2.22957764,1701.1,1701.0,5.11341756]
[1693407780030,0.00881808,1701.2,1701.0,6.54699932]
[1693407780235,2.23839572,1701.2,1701.0,6.54699932]
[1693407781531,2.23839572,1701.2,1701.0,5.11341756]
[1693407781732,16.1528,1701.1,1701.0,5.11341756]
[1693407782340,16.1528,1701.1,1701.0,0.00881756]
[1693407782837,16.1528,1701.1,1700.6,5.2558]
[1693407782838,10.0,1700.9,1700.6,5.2558]
[1693407783032,12.945,1700.7,1700.6,5.2558]
[1693407783236,15.17457764,1700.7,1700.3,2.01413084]
[1693407783437,3.2078,1700.6,1700.3,0.48150434]
[1693407783636,3.2078,1700.6,1700.2,9.08736626]
[1693407783938,2.22957764,1700.5,1700.2,6.7884265]
[1693407784139,3.2078,1700.4,1700.2,6.7884265]
[1693407784339,2.22957764,1700.4,1700.2,6.68938176]
[1693407784738,2.22957764,1700.4,1700.2,8.22200826]
[1693407785040,22.945,1700.7,1700.3,2.26993648]
[1693407785235,0.75927812,1700.6,1700.3,2.26993648]
[1693407785432,0.75927812,1700.6,1700.2,9.08736626]
[1693407785628,0.75927812,1700.6,1700.2,6.7884265]
[1693407785833,3.96707812,1700.6,1700.2,6.7884265]
[1693407786036,16.91207812,1700.6,1700.2,5.2558]
[1693407786440,16.91207812,1700.6,1700.2,6.7884265]
[1693407787335,3.96707812,1700.6,1700.2,6.7884265]
[1693407787543,3.96707812,1700.6,1700.2,9.05836298]
[1693407787932,16.91207812,1700.6,1700.2,5.2558]
[1693407788339,16.1528,1700.4,1700.2,5.2558]
[1693407788641,13.70427812,1700.3,1700.0,1.5326265]
[1693407788840,3.2078,1700.2,1699.9,1.5326265]
[1693407789141,3.2078,1700.0,1699.8,8.65466626]
[1693407789341,3.2078,1700.0,1699.8,6.3557265]
[1693407789540,3.2078,1700.0,1699.5,3.06525301]
[1693407789541,10.0,1699.6,1699.5,3.06525301]
[1693407789742,10.0,1699.6,1699.2,1.53290532]
[1693407789743,18.766,1699.5,1699.2,1.53290532]
[1693407789938,13.70427812,1699.4,1699.1,1.53290532]
[1693407790140,0.75927812,1699.4,1699.2,1.43358176]
[1693407790345,0.75927812,1699.4,1699.2,2.96648708]
[1693407790547,0.75927812,1699.4,1699.2,4.64138176]
[1693407791339,3.2078,1699.7,1699.3,2.26993648]
[1693407791545,16.1528,1699.9,1699.4,3.2078]
[1693407791747,12.945,1699.9,1699.4,3.2078]
[1693407791944,0.75927812,1699.8,1699.5,2.26993648]
[1693407792943,13.70427812,1699.8,1699.5,2.26993648]
[1693407793445,13.70427812,1699.8,1699.6,1.43358176]
[1693407794143,13.70427812,1699.8,1699.5,4.9429]
[1693407794342,16.1528,1699.6,1699.5,4.9429]
[1693407794548,16.91207812,1699.6,1699.5,4.9429]
[1693407795351,16.91207812,1699.6,1699.3,5.2929]
[1693407795553,16.1528,1699.4,1699.3,5.2929]
[1693407795744,16.91207812,1699.4,1699.3,5.2929]
[1693407796050,16.91207812,1699.4,1699.1,4.9429]
[1693407796344,12.945,1699.2,1699.1,4.9429]
[1693407796651,13.70427812,1699.2,1699.1,4.9429]
[1693407797045,0.75927812,1699.3,1699.1,6.37648176]
[1693407797453,0.75927812,1699.3,1699.1,4.9429]
[1693407797647,13.70427812,1699.3,1699.1,4.9429]
[1693407797853,3.2078,1699.2,1699.1,4.9429]
[1693407798053,13.70427812,1699.3,1699.1,4.9429]
[1693407798848,12.945,1699.2,1699.1,4.9429]
[1693407799153,16.1528,1699.2,1698.6,3.2078]
[1693407799550,10.0,1699.4,1698.8,16.1528]
[1693407799551,3.2078,1699.4,1698.8,16.1528]
[1693407799950,3.2078,1699.4,1698.9,7.52714944]
[1693407800152,12.945,1699.5,1699.2,3.2078]
[1693407800346,13.70427812,1699.5,1699.2,3.2078]
[1693407800754,13.70427812,1699.5,1699.2,5.47773648]
[1693407800948,12.945,1699.7,1699.3,1.43358176]
[1693407801143,12.945,1699.7,1699.4,2.26993648]
[1693407801347,13.70427812,1699.7,1699.4,2.26993648]
[1693407801653,13.70427812,1699.7,1699.3,5.2328]
[1693407801847,12.945,1699.5,1699.3,5.2328]
[1693407802045,0.75927812,1699.4,1699.0,4.9746]
[1693407802250,3.2078,1699.1,1698.8,5.0742]
[1693407802557,12.945,1699.1,1698.9,1.43358176]
[1693407802857,16.1528,1699.3,1698.9,1.43358176]
[1693407803054,16.91207812,1699.3,1698.9,1.43358176]
[1693407803253,16.91207812,1699.3,1699.0,2.26993648]
[1693407803450,3.96707812,1699.3,1699.1,1.43358176]
[1693407803856,3.96707812,1699.3,1698.9,5.1213]
[1693407804050,12.945,1699.2,1698.9,5.1213]
[1693407804458,12.945,1699.2,1699.0,1.43358176]
[1693407805150,3.96707812,1699.3,1699.0,1.43358176]
[1693407805354,12.945,1699.6,1699.1,2.26993648]
[1693407805549,16.16162613,1699.7,1699.1,15.21493648]
[1693407805754,16.16162613,1699.7,1699.2,3.2078]
[1693407805956,0.75927812,1699.6,1699.2,3.2078]
[1693407806153,16.1528,1699.5,1699.2,3.2078]
[1693407806450,0.75927812,1699.4,1699.2,3.2078]
[1693407806656,16.1528,1699.3,1698.9,10.1955]
[1693407806849,12.945,1699.1,1698.9,10.1955]
[1693407807055,0.75927812,1699.0,1698.9,10.1955]
[1693407807257,0.75927812,1699.0,1698.9,11.62908176]
[1693407808054,3.2078,1699.1,1698.9,11.62908176]
[1693407808255,16.1528,1699.3,1698.9,11.62908176]
[1693407808449,0.75927812,1699.2,1698.9,11.62908176]
[1693407808759,16.1528,1699.1,1698.9,10.1955]
[1693407808961,0.75927812,1699.0,1698.9,10.1955]
[1693407809256,0.75927812,1699.0,1698.4,0.46431345]
[1693407809257,13.70427812,1699.0,1698.4,0.46431345]
[1693407809451,12.945,1698.6,1698.4,5.1952]